{"text_format":"1","workbook":"xlsx","n_sheets":8,"sheets":["Startseite","Hilfe","BreakEvenAnalyse","GrafischeDarstellung","VERLAUF","Tabvorlage","Tabelle1","ICONS"],"not_rendered":{"charts":1,"images":17,"macros":1,"external_links":0,"defined_names":32,"comments":0,"pivot_tables":0},"unopened":[],"bounds":{"document_bytes":16777216,"sheet_cells":100000,"rows_first":2000,"rows_last":500,"rows_between":2000,"halvings":0,"cell_chars":16384,"cell_head_chars":4096},"cells_cut":0,"cells_raw":0,"read":"whole","date_system":"1900"}

{"sheet":"Startseite","index":0,"n_rows":29,"n_cols":8,"rows_kept":29,"cut":false,"hidden":false,"merged":[[9,2,9,9],[28,7,28,10],[0,1,3,10],[20,2,20,4],[21,2,21,4],[22,2,22,4],[11,2,11,4],[18,2,18,4],[19,2,19,4],[10,6,10,8],[11,6,11,8],[18,6,18,8],[19,6,19,8],[23,2,23,4],[20,6,20,8],[21,6,21,8],[22,6,22,8],[23,6,23,8],[12,2,12,4],[12,6,12,8],[24,2,24,4],[13,2,13,4],[13,6,13,8],[14,2,14,4],[14,6,14,8],[17,2,17,4],[17,6,17,8],[15,2,15,4],[15,6,15,8],[16,2,16,4],[16,6,16,8],[25,2,25,4],[26,2,26,4],[24,6,24,8],[25,6,25,8],[26,6,26,8]]}
[null,"Break-Even-Rechner"]
[]
[]
[]
[]
[]
[null,null,{"$f":"B1","v":"Break-Even-Rechner"}]
[null,null,"Susanne Kowalski"]
[]
[null,null,"Wie viel müssen Sie produzieren, um Gewinn zu machen? Die Antwort darauf liefert Ihnen dieser kleine Break-Even-Rechner. Mit ihm können Sie den Punkt bestimmen, ab dem Ihr Umsatz und der damit erreichte Deckungsbeitrag Ihre Fixkosten und variablen Kosten deckt. Alles darüber hinaus ist Ihr Gewinn."]
[null,null,"» Hilfe",null,null,null,"» Grafische Darstellung"]
[null,null,"» Break-Even-Analyse"]
[]
[]
[]
[]
[]
[]
[]
[]
[]
[]
[]
[]
[]
[]
[]
[]
[null,null,null,null,null,null,null,"Tabelle einfügen / Startseite konfigurieren"]

{"sheet":"Hilfe","index":1,"n_rows":98,"n_cols":14,"rows_kept":98,"cut":false,"hidden":false,"merged":[[0,2,2,11],[71,11,71,14],[12,3,12,13],[13,3,13,13],[14,3,14,13],[15,3,15,13],[16,3,16,13],[38,3,38,13],[30,3,30,13],[5,3,5,4],[6,3,6,4],[11,3,11,13],[26,3,26,13],[17,3,17,13],[18,3,18,13],[19,3,19,13],[20,3,20,13],[27,3,27,13],[51,3,51,13],[76,3,76,13],[80,3,80,13],[41,3,41,13],[43,4,43,13],[47,3,47,13],[34,3,34,13],[36,3,36,13],[52,3,52,13],[93,3,93,13],[97,3,97,13],[82,3,82,13],[85,3,85,13],[53,3,53,13],[68,3,68,13],[72,3,72,13],[89,3,89,13]]}
[null,null,"Anwenderhilfe für Excel"]
[]
[]
[]
[]
[null,null,null,"» Inhaltliche Hilfe",null,null,null,null,null,null,null,null,null,"» Startseite"]
[null,null,null,"» Technische Hilfe"]
[]
[]
[null,null,null,"Inhaltliche Hilfe"]
[]
[]
[]
[]
[]
[]
[]
[]
[]
[]
[]
[]
[]
[]
[null,null,null,"Technische Hilfe",null,null,null,null,null,null,null,null,null,"» Startseite"]
[]
[null,null,null,"Zum komfortablen Umgang mit diesem und anderen Excel-Tools erläutern wir hier einige Funktionen, die Sie beim Arbeiten mit Excel häufig benötigen, wie etwa die Anpassung der Startseite an Ihre persönlichen Bedürfnisse oder die Möglichkeiten der Haufe Toolbar. "]
[]
[]
[null,null,null,"Startseite konfigurieren"]
[null,null,null,"Über den Link Startseite konfigurieren gelangen Sie in ein Dialogfeld, in dem Sie alle nötigen Anpassungen der Startseite vornehmen können. \nHier können Sie weitere Tabellen einfügen, diese umbenennen oder löschen. Haben Sie eine Tabelle in der Liste markiert, können Sie mithilfe der Pfeiltasten die Reihenfolge der Tabellen ändern. Diese Änderung wirkt sich sowohl auf die Darstellung auf der Startseite aus, als auch auf die Position der Tabelle im Blattregister und im Listenfeld in der Toolbar."]
[]
[]
[]
[null,null,null,"Klicken Sie auf Speichern, werden die vorgenommenen Änderungen wirksam und Sie springen zurück zur Startseite."]
[]
[null,null,null,"Wenn Sie eine Tabelle im Listenfeld ausgewählt haben, gelangen Sie über den Button Gehe zu direkt zur gewünschten Tabelle."]
[]
[null,null,null,"Möchten Sie eine Tabelle umbenennen, markieren Sie diese und vergeben Sie im nebenstehenden Feld einen neuen Namen. \nMithilfe des Buttons Tabelle umbenennen werden die Änderungen gespeichert."]
[]
[null,null,null,"Logo auswählen"]
[null,null,null,"Über das Feld Logo auswählen können Sie Ihr eigenes Firmenlogo auf jeder Tabellenseite einbinden. Klicken Sie auf Durchsuchen, wählen Sie die gewünschte Datei aus und importieren Sie diese mithilfe des Buttons Hochladen.\nBitte beachten Sie dabei unbedingt die maximale Größe des neuen Logos. Die Datei sollte die Maße 35 px (Breite) und 84px (Höhe) nicht überschreiten. Bitte achten Sie auch darauf, dass die Datei 50 KB nicht überschreitet."]
[]
[null,null,null,"Hinweis:","Bitte ändern Sie die Namen der Blattregister nur über das Dialogfeld Tabelle einfügen/Startseite konfigurieren auf der Startseite. \nWenn Sie die Blattregister per Doppelklick umbenennen, funktionieren die Navigationslinks der Startseite bis zu einer Aktualisierung nicht mehr)."]
[]
[]
[null,null,null,"Haufe Toolbar"]
[null,null,null,"Die Haufe Toolbar ist das zentrale Navigationselement und erleichtert Ihnen die Navigation innerhalb des Tools. Hier werden ebenfalls die wichtigsten Funktionen für die Handhabung des Tools angeboten."]
[]
[]
[]
[null,null,null,"Mithilfe der Vor- und Zurück-Schaltflächen können Sie innerhalb der zuletzt aufgerufenen Seiten navigieren."]
[null,null,null,"Über das Listenfeld rufen Sie direkt die gewünschten Tabellen auf."]
[null,null,null,"Die wichtigsten Funktionen Speichern, Drucken, Kopieren und Einfügen werden ebenfalls zentral in der Toolbar angeboten. Ab Excel 2010 finden Sie diese Funktionen auf dem Registerblatt Add-Ins."]
[]
[]
[null,null,null,"Optionen"]
[]
[null,null,null,null,null,null,null,"» Gitternetz ein/aus"]
[null,null,null,null,null,null,null,"» Zeilen- und Spaltenbeschriftung ein/aus"]
[null,null,null,null,null,null,null,"» Blattregister ein/aus"]
[null,null,null,null,null,null,null,"» Kopf- und Fußzeile anpassen"]
[null,null,null,null,null,null,null,"» Zoom einstellen"]
[]
[]
[]
[]
[null,null,null,"Gitternetz ein/aus"]
[null,null,null,"Mit Hilfe dieses Menübefehls können Sie die Anzeige des Gitternetzes ein- und ausschalten."]
[]
[]
[null,null,null,"Zeilen- und Spaltenbeschriftung ein/aus"]
[null,null,null,"Mit Hilfe dieses Menübefehls können Sie die Anzeige der Zeilen- und Spaltenköpfe ein- und ausschalten. "]
[]
[]
[null,null,null,"Blattregister ein/aus"]
[null,null,null,"Mit Hilfe dieses Menübefehls können Sie die Anzeige der Blattregister ein- und ausschalten."]
[]
[]
[null,null,null,"Kopf- und Fußzeile bearbeiten"]
[null,null,null,"Über diesen Menübefehl rufen Sie einen Dialog auf, in dem Sie Ihre Kopf- und Fußzeilen einstellen können. Auf dem Reiter Eingabe Daten können Sie Angaben zur Firma, zur Abteilung und zum Autor eintragen."]
[]
[null,null,null,"Auf dem Reiter Kopf- und Fußzeile anpassen können Sie auswählen, wo die gewünschten Angaben platziert werden sollen. \nWählen Sie dazu den Bereich (Kopf- oder Fußzeile) aus, sowie die Platzierung (Links, Mitte oder Rechts)."]
[]
[]
[null,null,null,"Damit Sie Ihre Einstellungen in der Vorschau überprüfen können, müssen Sie die Einstellungen übernehmen mithilfe des gleichnamigen Buttons. Die Schaltfläche Alle Kopf- und Fußzeilen entfernen löscht alle Eintragungen in der Kopf- und Fußzeile. \nBitte beachten Sie, dass diese beiden Vorgänge etwas Zeit in Anspruch nehmen können."]
[]
[]
[null,null,null,"Zoom einstellen"]
[null,null,null,"Mit Hilfe dieses Menübefehls können Sie den Zoom für die einzelnen Arbeitsblätter einstellen. Standardmäßig ist ein 85%-iger Zoom eingestellt, den Sie jedoch jederzeit ändern können."]
[]
[]
[null,null,null,"Hilfe"]
[null,null,null,"Über den Hilfe-Button der Haufe Toolbar gelangen Sie auf die Hilfe-Seite, die Ihnen inhaltliche Hilfestellung bietet, sowie Hinweise zur technischen Handhabung des Tools."]
[]
[]
[null,null,null,"Hinweis"]
[null,null,null,"Beim mehrmaligen Öffnen mit dem IE 7 oder IE 8 aus einer Online-Version heraus, erscheint die Meldung, dass dieses Tool bereits verwendet wird. Öffnen Sie es schreibgeschützt und speichern Sie es lokal auf Ihrem Rechner ab. Wenn Sie die Meldung unterbinden möchten, aktivieren Sie über Extras > Internetoptionen > Erweitert > Bei Einstellungen/Sicherheit die Option \"Leeren des Ordners für temporäre Internetdateien beim Schließen des Browsers\"."]

{"sheet":"BreakEvenAnalyse","index":2,"n_rows":35,"n_cols":9,"rows_kept":35,"cut":false,"hidden":false,"merged":[[0,2,2,9]]}
[null,null,{"$f":"Startseite!B1","v":"Break-Even-Rechner"}]
[]
[]
[]
[]
[null,null,null,"Break-Even-Rechner",null,null,null,null,"» Startseite"]
[]
[null,null,null,"Variable Stückkosten",50]
[null,null,null,"Verkaufspreis pro Stück",200]
[null,null,null,"Fixe Kosten",150000]
[null,null,null,"Schrittweite",100]
[null,null,null,"Break-Even-Point",{"$f":"IF(E9-E8=0,\"\",E10/(E9-E8))","v":1000}]
[]
[null,null,null,"Menge","Gesamtkosten","Umsatz","Gewinn/Verlust"]
[null,null,null,0,{"$f":"D15*$E$8+$E$10","v":150000},{"$f":"D15*$E$9","v":0},{"$f":"F15-E15","v":-150000}]
[null,null,null,{"$f":"+D15+E11","v":100},155000,20000,-135000]
[null,null,null,{"$f":"+D16+$E$11","v":200},160000,40000,-120000]
[null,null,null,300,165000,60000,-105000]
[null,null,null,400,170000,80000,-90000]
[null,null,null,500,175000,100000,-75000]
[null,null,null,600,180000,120000,-60000]
[null,null,null,700,185000,140000,-45000]
[null,null,null,800,190000,160000,-30000]
[null,null,null,900,195000,180000,-15000]
[null,null,null,1000,200000,200000,0]
[null,null,null,1100,205000,220000,15000]
[null,null,null,1200,210000,240000,30000]
[null,null,null,1300,215000,260000,45000]
[null,null,null,1400,220000,280000,60000]
[null,null,null,1500,225000,300000,75000]
[null,null,null,1600,230000,320000,90000]
[null,null,null,1700,235000,340000,105000]
[null,null,null,1800,240000,360000,120000]
[null,null,null,1900,245000,380000,135000]
[null,null,null,2000,250000,400000,150000]

{"sheet":"GrafischeDarstellung","index":3,"n_rows":35,"n_cols":9,"rows_kept":35,"cut":false,"hidden":false,"merged":[[0,2,2,9]]}
[null,null,{"$f":"Startseite!B1","v":"Break-Even-Rechner"}]
[]
[]
[]
[]
[null,null,null,"Grafische Darstellung der Break-Even-Analyse",null,null,null,null,"» Startseite"]
[]
[null,null,null,"Variable Stückkosten",{"$f":"BreakEvenAnalyse!E8","v":50}]
[null,null,null,"Verkaufspreis pro Stück",{"$f":"BreakEvenAnalyse!E9","v":200}]
[null,null,null,"Fixe Kosten",{"$f":"BreakEvenAnalyse!E10","v":150000}]
[null,null,null,"Schrittweite",{"$f":"BreakEvenAnalyse!E11","v":100}]
[null,null,null,"Break-Even-Point",{"$f":"IF(E9-E8=0,\"\",E10/(E9-E8))","v":1000}]
[]
[null,null,null,"Menge","Gesamtkosten","Umsatz","Gewinn/Verlust"]
[null,null,null,0,{"$f":"D15*$E$8+$E$10","v":150000},{"$f":"D15*$E$9","v":0},{"$f":"F15-E15","v":-150000}]
[null,null,null,{"$f":"+D15+E11","v":100},155000,20000,-135000]
[null,null,null,{"$f":"+D16+$E$11","v":200},160000,40000,-120000]
[null,null,null,300,165000,60000,-105000]
[null,null,null,400,170000,80000,-90000]
[null,null,null,500,175000,100000,-75000]
[null,null,null,600,180000,120000,-60000]
[null,null,null,700,185000,140000,-45000]
[null,null,null,800,190000,160000,-30000]
[null,null,null,900,195000,180000,-15000]
[null,null,null,1000,200000,200000,0]
[null,null,null,1100,205000,220000,15000]
[null,null,null,1200,210000,240000,30000]
[null,null,null,1300,215000,260000,45000]
[null,null,null,1400,220000,280000,60000]
[null,null,null,1500,225000,300000,75000]
[null,null,null,1600,230000,320000,90000]
[null,null,null,1700,235000,340000,105000]
[null,null,null,1800,240000,360000,120000]
[null,null,null,1900,245000,380000,135000]
[null,null,null,2000,250000,400000,150000]

{"sheet":"VERLAUF","index":4,"n_rows":1,"n_cols":1,"rows_kept":1,"cut":false,"hidden":true,"merged":[]}
["Startseite"]

{"sheet":"Tabvorlage","index":5,"n_rows":6,"n_cols":10,"rows_kept":6,"cut":false,"hidden":true,"merged":[[0,2,2,10]]}
[null,null,{"$f":"Startseite!B1","v":"Break-Even-Rechner"}]
[]
[]
[]
[]
[null,null,null,"Untertitel",null,null,null,null,null,"» Startseite"]

{"sheet":"Tabelle1","index":6,"n_rows":6,"n_cols":5,"rows_kept":6,"cut":false,"hidden":true,"merged":[]}
[false,"Kopfzeile",false,false,false]
[false,"Bitte wählen",false,false,false]
[false,"Bitte wählen",false,false,false]
[false,"Bitte wählen",false,false,false]
[false,"Bitte wählen",false,false,false]
[false,"Bitte wählen",false,false,false]

{"sheet":"ICONS","index":7,"n_rows":0,"n_cols":0,"rows_kept":0,"cut":false,"hidden":true,"merged":[]}